[Event "81st Tata Steel Tienkamp 2019"]
[Site "Wijk aan Zee"]
[Date "2019.01.21"]
[Round "4"]
[White "Warmerdam, Max"]
[Black "Mamedjarova, Zeinab"]
[Result "1-0"]
[ECO "A81"]
[WhiteElo "2440"]
[BlackElo "2311"]
[Annotator "ChessBase"]
[PlyCount "80"]
[EventDate "2019.01.12"]
[EventType "tourn"]
[EventCountry "NED"]
[SourceTitle "playchess.com"]
[Source "ChessBase"]
[SourceQuality "1"]
[TimeControl "40/6000+30:20/3000+30:900+30"]

1. d4 {[%emt 0:00:00]} f5 {[%emt 0:00:00]} 2. g3 {[%emt 0:00:00]} g6 {[%emt 0:00:37]} 3. Bg2 {[%emt 0:00:47]} Bg7 {[%emt 0:00:07]} 4. Nc3 {[%emt 0:00:39]} Nf6 {[%emt 0:00:18]} 5. e4 {[%emt 0:00:09]} fxe4 {[%emt 0:01:21]} 6. Nxe4 {[%emt 0:00:13]} O-O {[%emt 0:00:02]} 7. Nxf6+ {[%emt 0:01:29]} exf6 {[%emt 0:00:51]} 8. c4 {[%emt 0:00:33]} Qe7+ {[%emt 0:05:47]} 9. Ne2 {[%emt 0:12:00]} Re8 {[%emt 0:07:18]} 10. Be3 {[%emt 0:21:43]} d6 {[%emt 0:06:51]} 11. O-O {[%emt 0:00:43]} c6 {[%emt 0:00:22]} 12. Re1 {[%emt 0:09:54]} Qf7 {[%emt 0:10:16]} 13. b3 {[%emt 0:03:27]} f5 {[%emt 0:02:57]} 14. Bf4 {[%emt 0:01:36]} Bf8 {[%emt 0:06:16]} 15. Nc3 {[%emt 0:08:12]} Rxe1+ {[%emt 0:07:43]} 16. Qxe1 {[%emt 0:00:02]} Qf6 {[%emt 0:05:39]} 17. c5 {[%emt 0:16:46]} Bd7 {[%emt 0:28:19]} 18. Nd5 {[%emt 0:19:37]} cxd5 {[%emt 0:00:08]} 19. Bxd5+ {[%emt 0:00:05]} Kg7 {[%emt 0:02:09]} 20. cxd6 {[%emt 0:01:56]} Bxd6 {[%emt 0:01:19]} 21. Bxd6 {[%emt 0:00:05]} Qxd6 {[%emt 0:01:45]} 22. Bxb7 {[%emt 0:00:06]} Bc6 {[%emt 0:02:11]} 23. Bxa8 {[%emt 0:00:06]} Bxa8 {[%emt 0:00:05]} 24. Qe5+ {[%emt 0:00:05]} Qxe5 {[%emt 0:00:04]} 25. dxe5 {[%emt 0:00:04]} Kf7 {[%emt 0:02:08]} 26. f4 {[%emt 0:00:48]} Ke6 {[%emt 0:00:54]} 27. Rc1 {[%emt 0:00:31]} Bc6 {[%emt 0:02:56]} 28. Kf2 {[%emt 0:00:14]} g5 {[%emt 0:03:58]} 29. Ke3 {[%emt 0:03:16]} gxf4+ {[%emt 0:00:15]} 30. gxf4 {[%emt 0:00:27]} Be4 {[%emt 0:03:56]} 31. b4 {[%emt 0:06:39]} Nc6 {[%emt 0:01:20]} 32. b5 {[%emt 0:00:53]} Nb4 {[%emt 0:00:53]} 33. Kd4 {[%emt 0:01:29]} Nd3 {[%emt 0:01:56]} 34. Rc7 {[%emt 0:01:23]} Nxf4 {[%emt 0:00:04]} 35. Rxa7 {[%emt 0:00:08]} Ne2+ {[%emt 0:00:05]} 36. Ke3 {[%emt 0:00:27]} Nc3 {[%emt 0:00:05]} 37. b6 {[%emt 0:00:26]} Kxe5 {[%emt 0:00:27]} 38. Re7+ {[%emt 0:01:16]} Kd6 {[%emt 0:03:26]} 39. b7 {[%emt 0:00:10]} Bxb7 {[%emt 0:01:10]} 40. Rxb7 {[%emt 0:00:02]} Nxa2 {[%emt 0:00:30] Ke4 Kd5+} 1-0

[Event "81st Tata Steel Tienkamp 2019"]
[Site "Wijk aan Zee"]
[Date "2019.01.21"]
[Round "4"]
[White "Kosakowski, Jakub"]
[Black "Beukema, Stefan"]
[Result "1/2-1/2"]
[ECO "C54"]
[WhiteElo "2404"]
[BlackElo "2414"]
[Annotator "ChessBase"]
[PlyCount "93"]
[EventDate "2019.01.12"]
[EventType "tourn"]
[EventCountry "NED"]
[SourceTitle "playchess.com"]
[Source "ChessBase"]
[SourceQuality "1"]
[TimeControl "40/6000+30:20/3000+30:900+30"]

1. e4 {[%emt 0:00:00]} e5 {[%emt 0:00:00]} 2. Nf3 {[%emt 0:00:00]} Nc6 {[%emt 0:00:00]} 3. Bc4 {[%emt 0:00:07]} Bc5 {[%emt 0:00:02]} 4. c3 {[%emt 0:00:16]} Nf6 {[%emt 0:00:06]} 5. d3 {[%emt 0:00:11]} a6 {[%emt 0:00:24]} 6. a4 {[%emt 0:00:21]} d6 {[%emt 0:05:03]} 7. O-O {[%emt 0:00:41]} Ba7 {[%emt 0:00:30]} 8. h3 {[%emt 0:00:32]} O-O {[%emt 0:01:35]} 9. Re1 {[%emt 0:00:24]} Be6 {[%emt 0:04:04]} 10. Nbd2 {[%emt 0:02:27]} h6 {[%emt 0:02:11]} 11. b4 {[%emt 0:03:50]} Ne7 {[%emt 0:05:35]} 12. Nf1 {[%emt 0:08:20]} Ng6 {[%emt 0:05:29]} 13. Ng3 {[%emt 0:03:35]} Qd7 {[%emt 0:01:25]} 14. Bxe6 {[%emt 0:01:58]} fxe6 {[%emt 0:03:51]} 15. d4 {[%emt 0:00:32]} exd4 {[%emt 0:00:17]} 16. cxd4 {[%emt 0:00:15]} Qf7 {[%emt 0:00:27]} 17. Qc2 {[%emt 0:02:56]} Kh8 {[%emt 0:04:08]} 18. Ra3 {[%emt 0:02:26]} d5 {[%emt 0:02:05]} 19. e5 {[%emt 0:07:14]} Nd7 {[%emt 0:08:26]} 20. Be3 {[%emt 0:03:24]} Nb6 {[%emt 0:01:26]} 21. Nd2 {[%emt 0:00:44]} Nh4 {[%emt 0:02:51]} 22. Rc3 {[%emt 0:07:39]} c6 {[%emt 0:06:46]} 23. b5 {[%emt 0:01:59]} Nd7 {[%emt 0:02:34]} 24. bxc6 {[%emt 0:02:07]} bxc6 {[%emt 0:00:09]} 25. Rxc6 {[%emt 0:02:58]} Nxe5 {[%emt 0:00:25]} 26. Rc7 {[%emt 0:01:29]} Nd7 {[%emt 0:00:05]} 27. Qc6 {[%emt 0:07:17]} Rfd8 {[%emt 0:02:11]} 28. Rb1 {[%emt 0:19:18]} Bb8 {[%emt 0:00:26]} 29. Rc8 {[%emt 0:14:25]} Rxc8 {[%emt 0:01:34]} 30. Qxc8+ {[%emt 0:00:06]} Kh7 {[%emt 0:00:06]} 31. Qc6 {[%emt 0:01:32]} Ra7 {[%emt 0:05:59]} 32. Rb7 {[%emt 0:03:24]} Rxb7 {[%emt 0:04:24]} 33. Qxb7 {[%emt 0:00:03]} a5 {[%emt 0:00:59]} 34. Ndf1 {[%emt 0:00:07]} Qe8 {[%emt 0:06:58]} 35. Bd2 {[%emt 0:00:59]} Nf6 {[%emt 0:00:12]} 36. Bxa5 {[%emt 0:00:25]} Qxa4 {[%emt 0:00:49]} 37. Bd8 {[%emt 0:00:27]} Bxg3 {[%emt 0:02:02]} 38. Qb1+ {[%emt 0:04:37]} Ng6 {[%emt 0:05:56]} 39. Nxg3 {[%emt 0:05:09]} Qxd4 {[%emt 0:00:23]} 40. Qc2 {[%emt 0:02:39]} Ne4 {[%emt 0:05:59]} 41. Nxe4 {[%emt 0:51:09]} dxe4 {[%emt 0:50:05]} 42. Bc7 {[%emt 0:00:15]} e3 {[%emt 0:00:29]} 43. fxe3 {[%emt 0:00:08]} Qxe3+ {[%emt 0:00:05]} 44. Kh2 {[%emt 0:00:07]} e5 {[%emt 0:01:06]} 45. Qf5 {[%emt 0:00:17]} Qe2 {[%emt 0:09:48]} 46. Bb6 {[%emt 0:00:50]} e4 {[%emt 0:01:45]} 47. Bd4 {[%emt 0:00:45]} 1/2-1/2

[Event "81st Tata Steel Tienkamp 2019"]
[Site "Wijk aan Zee"]
[Date "2019.01.21"]
[Round "4"]
[White "Brink, Barry"]
[Black "Martens, Martin"]
[Result "1-0"]
[ECO "E73"]
[WhiteElo "2385"]
[BlackElo "2382"]
[Annotator "ChessBase"]
[PlyCount "121"]
[EventDate "2019.01.12"]
[EventType "tourn"]
[EventCountry "NED"]
[SourceTitle "playchess.com"]
[Source "ChessBase"]
[SourceQuality "1"]
[TimeControl "40/6000+30:20/3000+30:900+30"]

1. d4 {[%emt 0:00:00]} g6 {[%emt 0:00:00]} 2. c4 {[%emt 0:00:16]} Bg7 {[%emt 0:00:00]} 3. Nc3 {[%emt 0:00:07]} d6 {[%emt 0:00:02]} 4. e4 {[%emt 0:01:34]} Nf6 {[%emt 0:00:26]} 5. Be2 {[%emt 0:00:55]} O-O {[%emt 0:00:12]} 6. Be3 {[%emt 0:00:21]} c5 {[%emt 0:00:14]} 7. d5 {[%emt 0:00:16]} e6 {[%emt 0:00:12]} 8. Nf3 {[%emt 0:00:54]} exd5 {[%emt 0:00:11]} 9. exd5 {[%emt 0:00:10]} Bg4 {[%emt 0:11:18]} 10. h3 {[%emt 0:03:38]} Bxf3 {[%emt 0:01:12]} 11. Bxf3 {[%emt 0:00:08]} Nfd7 {[%emt 0:05:44]} 12. Qd2 {[%emt 0:07:17]} Ne5 {[%emt 0:09:34]} 13. Be2 {[%emt 0:00:34]} f5 {[%emt 0:00:35]} 14. f4 {[%emt 0:06:48]} Ned7 {[%emt 0:02:45]} 15. g4 {[%emt 0:07:42]} b5 {[%emt 0:07:23]} 16. cxb5 {[%emt 0:20:15]} Nf6 {[%emt 0:04:13]} 17. gxf5 {[%emt 0:11:15]} gxf5 {[%emt 0:00:45]} 18. Bd3 {[%emt 0:05:52]} Ne4 {[%emt 0:02:02]} 19. Nxe4 {[%emt 0:06:55]} fxe4 {[%emt 0:00:37]} 20. Be2 {[%emt 0:00:22]} a6 {[%emt 0:05:37]} 21. b6 {[%emt 0:07:45]} Qh4+ {[%emt 0:05:25]} 22. Bf2 {[%emt 0:05:29]} Qe7 {[%emt 0:00:17]} 23. Rg1 {[%emt 0:04:37]} Nd7 {[%emt 0:00:49]} 24. O-O-O {[%emt 0:01:01]} Kh8 {[%emt 0:01:15]} 25. Rxg7 {[%emt 0:03:44]} Qxg7 {[%emt 0:00:15]} 26. Qe3 {[%emt 0:06:47]} Qf6 {[%emt 0:12:44]} 27. Be1 {[%emt 0:00:46]} Qxf4 {[%emt 0:00:12]} 28. Bc3+ {[%emt 0:00:06]} Ne5 {[%emt 0:00:32]} 29. Qxf4 {[%emt 0:00:55]} Rxf4 {[%emt 0:00:08]} 30. b7 {[%emt 0:03:46]} Rb8 {[%emt 0:01:37]} 31. Bxa6 {[%emt 0:01:33]} e3 {[%emt 0:04:35]} 32. Re1 {[%emt 0:03:36]} Ra4 {[%emt 0:00:42]} 33. Bb5 {[%emt 0:00:11]} Re4 {[%emt 0:02:39]} 34. Bc6 {[%emt 0:00:07]} Kg8 {[%emt 0:00:31]} 35. Bxe5 {[%emt 0:00:10]} Rxe5 {[%emt 0:00:55]} 36. a4 {[%emt 0:00:43]} Re7 {[%emt 0:01:23]} 37. Kc2 {[%emt 0:01:06]} Kf7 {[%emt 0:01:02]} 38. Kc3 {[%emt 0:00:40]} h5 {[%emt 0:02:05]} 39. b3 {[%emt 0:00:33]} Kg6 {[%emt 0:01:50]} 40. a5 {[%emt 0:00:31]} Rexb7 {[%emt 0:04:15]} 41. Bxb7 {[%emt 0:11:17]} Rxb7 {[%emt 0:10:13]} 42. Rxe3 {[%emt 0:02:32]} Ra7 {[%emt 0:02:22]} 43. b4 {[%emt 0:00:38]} Kg5 {[%emt 0:13:44]} 44. Kc4 {[%emt 0:02:41]} Kf4 {[%emt 0:02:37]} 45. Ra3 {[%emt 0:00:37]} cxb4 {[%emt 0:00:21]} 46. Kxb4 {[%emt 0:00:05]} Ke4 {[%emt 0:00:35]} 47. Kb5 {[%emt 0:00:18]} Kxd5 {[%emt 0:00:19]} 48. Kb6 {[%emt 0:00:09]} Ra8 {[%emt 0:00:32]} 49. a6 {[%emt 0:00:10]} Ke4 {[%emt 0:00:59]} 50. Kb7 {[%emt 0:09:18]} Rg8 {[%emt 0:02:28]} 51. a7 {[%emt 0:00:07]} d5 {[%emt 0:00:19]} 52. a8=Q {[%emt 0:00:53]} Rxa8 {[%emt 0:00:10]} 53. Rxa8 {[%emt 0:00:09]} d4 {[%emt 0:00:50]} 54. Rd8 {[%emt 0:00:18]} d3 {[%emt 0:00:13]} 55. Kc6 {[%emt 0:00:07]} Ke3 {[%emt 0:00:05]} 56. Kd5 {[%emt 0:00:32]} d2 {[%emt 0:00:45]} 57. Ke5 {[%emt 0:00:06]} Ke2 {[%emt 0:00:05]} 58. Kf5 {[%emt 0:00:08]} d1=Q {[%emt 0:00:12]} 59. Rxd1 {[%emt 0:00:06]} Kxd1 {[%emt 0:00:06]} 60. Kg5 {[%emt 0:00:07]} Ke2 {[%emt 0:00:09]} 61. Kxh5 {[%emt 0:15:11]} 1-0

[Event "81st Tata Steel Tienkamp 2019"]
[Site "Wijk aan Zee"]
[Date "2019.01.22"]
[Round "5"]
[White "Beerdsen, Thomas"]
[Black "Warmerdam, Max"]
[Result "1/2-1/2"]
[ECO "B70"]
[WhiteElo "2484"]
[BlackElo "2440"]
[Annotator "ChessBase"]
[PlyCount "37"]
[EventDate "2019.01.12"]
[EventType "tourn"]
[EventCountry "NED"]
[SourceTitle "playchess.com"]
[Source "ChessBase"]
[SourceQuality "1"]
[TimeControl "40/6000+30:20/3000+30:900+30"]

1. e4 {[%emt 0:00:00]} c5 {[%emt 0:00:00]} 2. Nf3 {[%emt 0:00:00]} d6 {[%emt 0:00:00]} 3. d4 {[%emt 0:00:14]} cxd4 {[%emt 0:00:00]} 4. Nxd4 {[%emt 0:00:05]} Nf6 {[%emt 0:00:00]} 5. Nc3 {[%emt 0:00:04]} g6 {[%emt 0:00:00]} 6. g3 {[%emt 0:03:13]} Bg7 {[%emt 0:00:12]} 7. Bg2 {[%emt 0:00:05]} O-O {[%emt 0:00:11]} 8. O-O {[%emt 0:01:36]} Nc6 {[%emt 0:00:04]} 9. Nb3 {[%emt 0:12:34]} Bg4 {[%emt 0:02:34]} 10. f3 {[%emt 0:00:42]} Be6 {[%emt 0:01:03]} 11. Qe2 {[%emt 0:06:06]} a5 {[%emt 0:32:55]} 12. Nb5 {[%emt 0:30:24]} a4 {[%emt 0:12:20]} 13. N3d4 {[%emt 0:04:53]} Nxd4 {[%emt 0:01:06]} 14. Nxd4 {[%emt 0:00:06]} Qb6 {[%emt 0:00:05]} 15. c3 {[%emt 0:00:34]} Rfc8 {[%emt 0:02:20]} 16. Rf2 {[%emt 0:03:55]} a3 {[%emt 0:17:51]} 17. Nxe6 {[%emt 0:01:40]} fxe6 {[%emt 0:00:11]} 18. Bh3 {[%emt 0:00:46]} Kf7 {[%emt 0:03:31]} 19. bxa3 {[%emt 0:13:15]} 1/2-1/2

[Event "81st Tata Steel Tienkamp 2019"]
[Site "Wijk aan Zee"]
[Date "2019.01.22"]
[Round "5"]
[White "Mamedjarova, Zeinab"]
[Black "Kosakowski, Jakub"]
[Result "1-0"]
[ECO "A48"]
[WhiteElo "2311"]
[BlackElo "2404"]
[Annotator "NA"]
[PlyCount "55"]
[EventDate "2019.01.12"]
[EventType "tourn"]
[EventCountry "NED"]
[SourceTitle "playchess.com"]
[Source "ChessBase"]
[SourceQuality "1"]
[TimeControl "40/6000+30:20/3000+30:900+30"]

1. d4 {[%emt 0:00:00]} Nf6 {[%emt 0:00:00]} 2. Nf3 {[%emt 0:00:04]} g6 {[%emt 0:00:00]} 3. e3 {[%emt 0:00:33]} Bg7 {[%emt 0:00:02]} 4. Bd3 {[%emt 0:00:12]} O-O {[%emt 0:00:13]} 5. O-O {[%emt 0:00:09]} d6 {[%emt 0:00:09]} 6. c4 {[%emt 0:02:48]} Nc6 {[%emt 0:01:06]} 7. Nc3 {[%emt 0:03:06]} e5 {[%emt 0:02:53]} 8. b3 {[%emt 0:04:38]} Nd7 {[%emt 0:07:58]} 9. Bb2 {[%emt 0:08:54]} f5 {[%emt 0:07:35]} 10. Be2 {[%emt 0:06:19]} Kh8 {[%emt 0:02:43]} 11. dxe5 {[%emt 0:01:39]} dxe5 {[%emt 0:00:42]} 12. Qd2 {[%emt 0:07:33]} e4 {[%emt 0:12:58]} 13. Nd4 {[%emt 0:03:24]} Nc5 {[%emt 0:00:16]} 14. Rad1 {[%emt 0:09:04]} Ne5 {[%emt 0:02:29]} 15. Ba3 {[%emt 0:03:11]} b6 {[%emt 0:00:48]} 16. Na4 $16 {[%emt 0:04:30]} Nxa4 {[%emt 0:31:34]} 17. Bxf8 {[%emt 0:00:43]} Qxf8 {[%emt 0:00:06]} 18. bxa4 {[%emt 0:00:20]} Bd7 {[%emt 0:00:03]} 19. a5 {[%emt 0:04:08]} Re8 {[%emt 0:05:15]} 20. Rb1 {[%emt 0:07:23]} Qf7 {[%emt 0:06:58]} 21. Rfc1 {[%emt 0:01:12]} c5 {[%emt 0:09:40]} 22. Nb5 {[%emt 0:06:24]} Be6 {[%emt 0:00:08]} 23. axb6 {[%emt 0:10:08]} axb6 {[%emt 0:01:00]} 24. Nd6 {[%emt 0:04:31]} Qd7 {[%emt 0:00:08]} 25. Rxb6 {[%emt 0:00:12]} Rd8 {[%emt 0:00:12]} 26. Rd1 {[%emt 0:02:51]} Bf6 {[%emt 0:05:11]} 27. Nxe4 {[%emt 0:03:34]} Qe7 {[%emt 0:06:30]} 28. Qxd8+ {[%emt 0:00:28]} 1-0

[Event "81st Tata Steel Tienkamp 2019"]
[Site "Wijk aan Zee"]
[Date "2019.01.23"]
[Round "6"]
[White "Warmerdam, Max"]
[Black "Vrolijk, Liam"]
[Result "1-0"]
[ECO "C45"]
[WhiteElo "2440"]
[BlackElo "2433"]
[Annotator "NA"]
[PlyCount "81"]
[EventDate "2019.01.12"]
[EventType "tourn"]
[EventCountry "NED"]
[SourceTitle "playchess.com"]
[Source "ChessBase"]
[SourceQuality "1"]
[TimeControl "40/6000+30:20/3000+30:900+30"]

1. e4 {[%emt 0:00:00]} e5 {[%emt 0:00:00]} 2. Nf3 {[%emt 0:00:00]} Nc6 {[%emt 0:00:00]} 3. d4 {[%emt 0:00:00]} exd4 {[%emt 0:00:00]} 4. Nxd4 {[%emt 0:00:00]} Bc5 {[%emt 0:02:53]} 5. Nxc6 {[%emt 0:00:00]} bxc6 {[%emt 0:00:29]} 6. Bd3 {[%emt 0:00:05]} Qh4 {[%emt 0:00:48]} 7. Qe2 {[%emt 0:00:06]} Nf6 {[%emt 0:03:21]} 8. h3 {[%emt 0:00:21]} O-O {[%emt 0:15:20]} 9. g3 {[%emt 0:01:39]} Qh5 {[%emt 0:00:47] LiveBook: 12 Games} 10. g4 {[%emt 0:00:07]} Qe5 {[%emt 0:00:39]} 11. g5 $11 {[%emt 0:00:07]} Ne8 {[%emt 0:05:51]} 12. f4 {[%emt 0:00:05]} Qe7 {[%emt 0:00:05]} 13. Nc3 {[%emt 0:29:47]} a5 {[%emt 0:07:51]} 14. h4 {[%emt 0:04:50]} Bd4 {[%emt 0:17:07]} 15. Nd1 {[%emt 0:10:29]} Ba6 {[%emt 0:03:03]} 16. Bxa6 {[%emt 0:13:15]} Rxa6 {[%emt 0:00:49]} 17. e5 {[%emt 0:01:20]} Ra8 {[%emt 0:02:33]} 18. c3 {[%emt 0:13:06]} Bb6 {[%emt 0:00:33]} 19. Ne3 {[%emt 0:00:54]} d6 {[%emt 0:05:08]} 20. Nc4 {[%emt 0:05:26]} dxe5 {[%emt 0:05:53]} 21. fxe5 {[%emt 0:00:40]} Qe6 {[%emt 0:06:50]} 22. Bd2 {[%emt 0:00:35]} g6 {[%emt 0:01:21]} 23. O-O-O {[%emt 0:02:20]} Nd6 {[%emt 0:02:01]} 24. Nxb6 {[%emt 0:03:12]} cxb6 {[%emt 0:00:51]} 25. h5 {[%emt 0:00:57]} Nf5 {[%emt 0:02:48]} 26. Qh2 {[%emt 0:00:26]} Ra7 {[%emt 0:00:51]} 27. Kb1 {[%emt 0:00:57]} Rd7 {[%emt 0:02:28]} 28. Bc1 {[%emt 0:07:34]} Rfd8 {[%emt 0:00:58]} 29. Rxd7 {[%emt 0:09:51]} Rxd7 {[%emt 0:00:33]} 30. hxg6 {[%emt 0:00:11]} fxg6 {[%emt 0:00:46]} 31. Re1 {[%emt 0:00:31]} Ne7 {[%emt 0:03:55]} 32. Ka1 {[%emt 0:02:14]} Nd5 {[%emt 0:00:54]} 33. Qf2 {[%emt 0:01:38]} Kg7 {[%emt 0:01:15]} 34. c4 {[%emt 0:01:39]} Nc7 {[%emt 0:03:32]} 35. Qxb6 {[%emt 0:00:09]} Qxc4 {[%emt 0:00:06]} 36. Qxa5 {[%emt 0:01:42]} Ne6 {[%emt 0:02:41]} 37. Qc3 {[%emt 0:00:36]} Qa6 {[%emt 0:00:16]} 38. Qh3 {[%emt 0:01:01]} Nc5 {[%emt 0:01:45]} 39. e6 {[%emt 0:01:00]} Ra7 {[%emt 0:00:49]} 40. Qc3+ {[%emt 0:00:23]} Kg8 {[%emt 0:00:41]} 41. a3 {[%emt 0:12:12]} 1-0

[Event "81st Tata Steel Tienkamp 2019"]
[Site "Wijk aan Zee"]
[Date "2019.01.23"]
[Round "6"]
[White "Beukema, Stefan"]
[Black "Mamedjarova, Zeinab"]
[Result "0-1"]
[ECO "A03"]
[WhiteElo "2414"]
[BlackElo "2311"]
[Annotator "NA"]
[PlyCount "112"]
[EventDate "2019.01.12"]
[EventType "tourn"]
[EventCountry "NED"]
[SourceTitle "playchess.com"]
[Source "ChessBase"]
[SourceQuality "1"]
[TimeControl "40/6000+30:20/3000+30:900+30"]

1. f4 {[%emt 0:00:15]} d5 {[%emt 0:02:05]} 2. Nf3 {[%emt 0:00:09]} Nf6 {[%emt 0:00:03]} 3. g3 {[%emt 0:00:14]} b6 {[%emt 0:02:53]} 4. Bg2 {[%emt 0:00:09]} Bb7 {[%emt 0:00:03]} 5. d3 {[%emt 0:00:28]} e6 {[%emt 0:00:20]} 6. O-O {[%emt 0:07:58]} Be7 {[%emt 0:00:09]} 7. e4 {[%emt 0:01:55]} dxe4 {[%emt 0:03:54]} 8. Ng5 {[%emt 0:01:01]} Na6 {[%emt 0:06:38]} 9. Nc3 {[%emt 0:02:13]} Nc5 {[%emt 0:03:14]} 10. d4 {[%emt 0:02:40]} h6 {[%emt 0:04:06]} 11. Nh3 {[%emt 0:08:42]} Na6 {[%emt 0:15:47]} 12. Nf2 {[%emt 0:00:07]} c5 {[%emt 0:12:04]} 13. Ncxe4 {[%emt 0:07:28]} Nxe4 {[%emt 0:01:36]} 14. Nxe4 {[%emt 0:00:06]} Qc7 $11 {[%emt 0:03:30]} 15. f5 {[%emt 0:05:09]} exf5 {[%emt 0:08:56]} 16. Rxf5 {[%emt 0:04:44]} Qd7 {[%emt 0:01:44]} 17. Rf1 {[%emt 0:06:20]} Rd8 {[%emt 0:12:27]} 18. Qe2 {[%emt 0:00:34]} O-O {[%emt 0:04:28]} 19. Be3 {[%emt 0:03:24]} f5 {[%emt 0:05:56]} 20. Nc3 {[%emt 0:02:55]} Bxg2 {[%emt 0:01:43]} 21. Qxg2 {[%emt 0:00:05]} cxd4 {[%emt 0:00:26]} 22. Rad1 {[%emt 0:00:40]} Qe6 {[%emt 0:07:52]} 23. Bxd4 {[%emt 0:01:02]} Rxd4 {[%emt 0:00:08]} 24. Rxd4 {[%emt 0:00:05]} Bc5 {[%emt 0:00:06]} 25. Rfd1 {[%emt 0:03:28]} Rd8 {[%emt 0:04:14]} 26. Qe2 {[%emt 0:02:57]} Qf7 {[%emt 0:05:24]} 27. Qxa6 {[%emt 0:02:41]} Bxd4+ {[%emt 0:00:45]} 28. Kg2 {[%emt 0:00:54]} f4 {[%emt 0:00:35]} 29. Qe2 {[%emt 0:00:28]} Re8 {[%emt 0:01:34]} 30. Ne4 {[%emt 0:02:32]} Bxb2 {[%emt 0:01:33]} 31. Qf3 {[%emt 0:01:09]} Be5 {[%emt 0:00:14]} 32. a3 {[%emt 0:01:53]} fxg3 {[%emt 0:00:18]} 33. hxg3 {[%emt 0:00:05]} Qxf3+ {[%emt 0:00:38]} 34. Kxf3 {[%emt 0:00:05]} Rc8 {[%emt 0:00:40]} 35. Rd7 {[%emt 0:00:40]} Rc7 {[%emt 0:00:49]} 36. Rd5 {[%emt 0:00:47]} Bb2 {[%emt 0:00:13]} 37. a4 {[%emt 0:00:03]} Rxc2 {[%emt 0:00:16]} 38. Rd7 {[%emt 0:00:05]} a5 {[%emt 0:00:32]} 39. Rb7 {[%emt 0:00:26]} Rc6 {[%emt 0:00:18]} 40. Nd2 {[%emt 0:00:26]} Be5 {[%emt 0:00:56]} 41. g4 {[%emt 0:50:27]} Kh7 {[%emt 0:50:31]} 42. Ke4 {[%emt 0:00:11]} Bc3 {[%emt 0:00:38]} 43. Nf3 {[%emt 0:00:47]} Bf6 {[%emt 0:00:00]} 44. Kf5 {[%emt 0:00:00]} Rc5+ {[%emt 0:00:00]} 45. Ke6 {[%emt 0:00:00]} Rc4 {[%emt 0:00:00]} 46. Kf5 {[%emt 0:00:00]} Rxa4 {[%emt 0:00:00]} 47. Rxb6 {[%emt 0:00:00]} Ra1 {[%emt 0:00:00]} 48. g5 {[%emt 0:00:00]} hxg5 {[%emt 0:00:00]} 49. Ra6 {[%emt 0:00:00]} a4 {[%emt 0:00:00]} 50. Kg4 {[%emt 0:00:00]} a3 {[%emt 0:00:00]} 51. Kf5 {[%emt 0:00:00]} a2 {[%emt 0:00:00]} 52. Kg4 {[%emt 0:00:00]} Kg8 {[%emt 0:00:00]} 53. Kg3 {[%emt 0:00:00]} Kf7 {[%emt 0:00:00]} 54. Kf2 {[%emt 0:00:00]} g4 {[%emt 0:00:00]} 55. Nd2 {[%emt 0:00:00]} Bd4+ {[%emt 0:00:00]} 56. Ke2 {[%emt 0:00:00]} Bc3 {[%emt 0:00:00]} 0-1

[Event "81st Tata Steel Tienkamp 2019"]
[Site "Wijk aan Zee"]
[Date "2019.01.23"]
[Round "6"]
[White "Kosakowski, Jakub"]
[Black "Beerdsen, Thomas"]
[Result "0-1"]
[ECO "B47"]
[WhiteElo "2404"]
[BlackElo "2484"]
[Annotator "ChessBase"]
[PlyCount "66"]
[EventDate "2019.01.12"]
[EventType "tourn"]
[EventCountry "NED"]
[SourceTitle "playchess.com"]
[Source "ChessBase"]
[SourceQuality "1"]
[TimeControl "40/6000+30:20/3000+30:900+30"]

1. e4 {[%emt 0:00:00]} c5 {[%emt 0:04:49]} 2. Nf3 {[%emt 0:00:00]} e6 {[%emt 0:00:05]} 3. d4 {[%emt 0:00:06]} cxd4 {[%emt 0:00:04]} 4. Nxd4 {[%emt 0:00:09]} Nc6 {[%emt 0:00:07]} 5. Nc3 {[%emt 0:00:11]} Qc7 {[%emt 0:00:05]} 6. f4 {[%emt 0:00:34]} a6 {[%emt 0:00:42]} 7. Nxc6 {[%emt 0:00:39]} bxc6 {[%emt 0:00:06]} 8. Bd3 {[%emt 0:00:14]} d5 {[%emt 0:00:09]} 9. Qe2 {[%emt 0:00:21]} Nf6 {[%emt 0:00:20]} 10. O-O {[%emt 0:01:36]} Be7 {[%emt 0:02:44]} 11. Kh1 {[%emt 0:01:37]} O-O {[%emt 0:03:01]} 12. e5 {[%emt 0:06:34]} Nd7 {[%emt 0:00:37]} 13. Na4 {[%emt 0:00:14]} g6 {[%emt 0:09:08]} 14. c4 {[%emt 0:00:48]} d4 {[%emt 0:11:28]} 15. Bd2 {[%emt 0:01:14]} c5 {[%emt 0:01:40]} 16. b3 {[%emt 0:00:25]} f5 {[%emt 0:04:24]} 17. exf6 {[%emt 0:02:26]} Nxf6 {[%emt 0:00:24]} 18. Rae1 {[%emt 0:01:49]} Rf7 {[%emt 0:09:52]} 19. Bc2 {[%emt 0:03:53]} Bd6 {[%emt 0:13:30]} 20. Nb2 {[%emt 0:07:42]} a5 {[%emt 0:05:35]} 21. Nd3 {[%emt 0:03:57]} Re7 {[%emt 0:06:18]} 22. Ne5 {[%emt 0:02:48]} Bb7 {[%emt 0:02:21]} 23. Qd3 {[%emt 0:09:02]} Rf8 {[%emt 0:02:44]} 24. Qg3 {[%emt 0:06:31]} Qd8 {[%emt 0:08:45]} 25. Bd3 {[%emt 0:09:13]} Qa8 {[%emt 0:00:51]} 26. Nxg6 {[%emt 0:24:20]} hxg6 {[%emt 0:02:40]} 27. Bxg6 {[%emt 0:02:03]} Rg7 {[%emt 0:00:45]} 28. Rxe6 {[%emt 0:01:01]} Be4 {[%emt 0:04:21]} 29. Bxe4 {[%emt 0:06:05]} Nxe4 {[%emt 0:00:05]} 30. Qh3 {[%emt 0:00:23]} Ng5 {[%emt 0:02:42]} 31. Qg4 {[%emt 0:00:44]} Nxe6 {[%emt 0:00:04]} 32. Qxe6+ {[%emt 0:00:05]} Rff7 {[%emt 0:00:09]} 33. Rf3 {[%emt 0:00:05]} Qd8 {[%emt 0:01:24]} 0-1

[Event "81st Tata Steel Tienkamp 2019"]
[Site "Wijk aan Zee"]
[Date "2019.01.23"]
[Round "6"]
[White "Rapport, Jovana"]
[Black "Martens, Martin"]
[Result "1/2-1/2"]
[ECO "B08"]
[WhiteElo "2375"]
[BlackElo "2382"]
[Annotator "NA"]
[PlyCount "48"]
[EventDate "2019.01.12"]
[EventType "tourn"]
[EventCountry "NED"]
[SourceTitle "playchess.com"]
[Source "ChessBase"]
[SourceQuality "1"]
[TimeControl "40/6000+30:20/3000+30:900+30"]

1. d4 {[%emt 0:00:00]} g6 {[%emt 0:00:00]} 2. e4 {[%emt 0:00:00]} Bg7 {[%emt 0:00:00]} 3. Nf3 {[%emt 0:00:06]} d6 {[%emt 0:00:10]} 4. Be2 {[%emt 0:00:11]} Nf6 {[%emt 0:00:17]} 5. Nc3 {[%emt 0:00:22]} O-O {[%emt 0:00:13]} 6. O-O {[%emt 0:00:09]} Nc6 {[%emt 0:00:08]} 7. d5 {[%emt 0:00:56]} Nb8 {[%emt 0:00:09]} 8. a4 {[%emt 0:01:41]} e5 {[%emt 0:06:24]} 9. dxe6 {[%emt 0:05:36]} Bxe6 {[%emt 0:00:55]} 10. Nd4 {[%emt 0:04:10]} Bd7 {[%emt 0:00:58]} 11. Bg5 {[%emt 0:02:22]} h6 {[%emt 0:01:27]} 12. Be3 {[%emt 0:13:11]} Nc6 {[%emt 0:07:07]} 13. Qd2 {[%emt 0:00:59]} Re8 {[%emt 0:06:41]} 14. f3 {[%emt 0:04:17]} Nxd4 {[%emt 0:07:27]} 15. Bxd4 {[%emt 0:00:06]} a5 {[%emt 0:02:48]} 16. Rad1 {[%emt 0:00:37]} Bc6 {[%emt 0:11:02]} 17. Bc4 $14 {[%emt 0:02:47]} Nd7 {[%emt 0:05:05]} 18. f4 {[%emt 0:05:35]} Bxe4 {[%emt 0:13:06]} 19. Bxg7 {[%emt 0:02:17]} Kxg7 {[%emt 0:00:37]} 20. Nxe4 {[%emt 0:08:37]} Rxe4 {[%emt 0:01:34]} 21. Bd5 {[%emt 0:00:50]} Rb4 {[%emt 0:07:45]} 22. c3 {[%emt 0:03:23]} Rb6 {[%emt 0:01:14]} 23. Rde1 {[%emt 0:06:19]} Nf6 {[%emt 0:05:07]} 24. f5 {[%emt 0:06:23]} g5 {[%emt 0:03:32]} 1/2-1/2